[Event "13th KIIT Festival-A 2022"]
[Site "Bhubaneswar"]
[Date "2022.05.27"]
[Round "8.18"]
[White "Velpula Sarayu"]
[Black "Rakesh, Kumar Nayak"]
[Result "0-1"]
[ECO "C45"]
[WhiteElo "1845"]
[BlackElo "2053"]
[Annotator "TA"]
[PlyCount "48"]
[EventDate "2022.05.15"]
[EventType "swiss"]
[EventCountry "IND"]
[SourceTitle "playchess.com"]
[Source "ChessBase"]
[SourceQuality "1"]
[TimeControl "5400+30"]

{[%evp 14,48,0,-14,14,3,9,16,0,0,10,-42,-23,-39,-50,-26,-10,-152,-62,-39,-34,-89,-12,-173,-177,-428,-379,-370,-383,-358,-340,-841,-557,-576,-491,-502,-488]} 1. e4 {[%emt 0:00:06]} e5 {[%emt 0:03:49]} 2. Nf3 {[%emt 0:00:17]} Nc6 {[%emt 0:00:19]} 3. d4 {[%emt 0:00:10]} exd4 {[%emt 0:00:06]} 4. Nxd4 {[%emt 0:00:18]} Nf6 {[%emt 1:28:16]} 5. Nxc6 {[%emt 0:00:20]} bxc6 {[%emt 0:00:00]} 6. e5 {[%emt 0:00:13]} Qe7 {[%emt 0:00:00]} 7. Qe2 {[%emt 0:00:18]} Nd5 {[%emt 0:00:00]} 8. h4 {[%emt 0:00:10]} h6 {[%emt 0:00:00] C45: Scotch Game.} 9. c4 {[%emt 0:03:24]} Ba6 {[%emt 0:00:00] [#]} 10. g3 $146 {[%emt 0:00:55]} ({Predecessor:} 10. Rh3 Nb6 11. Nd2 Qe6 12. b3 Bb4 13. Bb2 Qe7 14. O-O-O Ba3 15. f4 O-O-O 16. Ne4 {0-1 (37) Dimitrov,V (2391)-Stefanov,E (2458) Veliko Tarnovo 2017}) 10... g6 {[%emt 0:00:00] The position is equal.} 11. h5 {[%emt 0:01:22]} g5 {[%emt 0:00:00]} (11... Qb4+ 12. Nd2 $16) 12. Bg2 {[%emt 0:08:28]} ({White should play} 12. Qe4 $11) 12... Bg7 $1 $15 {[%emt 0:00:00]} 13. O-O {[%emt 0:01:40]} O-O $1 {[%emt 0:00:00]} ({Don't take} 13... Bxe5 14. Re1 f6 15. Qe4 $11) 14. Re1 {[%emt 0:09:26]} Rfe8 {[%emt 0:00:00][%cal Rg7e5]} 15. Qg4 {[%emt 0:09:30] [#]} (15. Qc2 $11 {keeps the balance.} Qc5 16. Nd2) 15... Nf6 $3 {[%emt 0:00:00][%mdl 512]} 16. Qd1 {[%emt 0:05:40]} Bxc4 {[%emt 0:00:00]} 17. Nc3 {[%emt 0:01:47]} (17. Na3 $15 Ba6 18. Bxg5 hxg5 19. exf6 Qxe1+ 20. Qxe1 Rxe1+ 21. Rxe1 Bxf6 22. b3) 17... d5 {[%emt 0:00:00]} ({Black should try} 17... Nh7 $17 18. Bd2 Rab8) 18. Qa4 $2 {[%emt 0:11:25] This costs White the game.} (18. b3 $11 {and White is okay.} Ba6 19. Bb2) 18... Ng4 $36 {[%emt 0:00:00][%cal Oe7f6][%mdl 2048] And now ...Qf6! would win. Black is on the roll.} ({Not} 18... Nxh5 19. Qxc6 Qe6 20. Qxe6 Rxe6 21. g4 $11 (21. Bxd5 Bxd5 22. Nxd5 Bxe5 $17)) 19. e6 $2 {[%emt 0:25:29]} (19. Be3 {was called for.}) 19... fxe6 {[%emt 0:00:00][%cal Bf7e6,Be6e5][%mdl 32]} 20. Qd1 {[%emt 0:06:48] [#]} Nxf2 {[%emt 0:00:00][%mdl 512]} 21. Kxf2 {[%emt 0:01:00]} Qc5+ {[%emt 0:00:00]} 22. Kf3 $2 {[%emt 0:00:23]} (22. Be3 d4 23. Kg1 dxe3 24. Ne4) 22... d4 {[%emt 0:09:00] Black is clearly winning.} 23. Ne4 {[%emt 0:02:23]} Qf5+ {[%emt 0:00:00]} 24. Bf4 {[%emt 0:00:05]} e5 {[%emt 0:00:00][%mdl 64] Pin.  Weighted Error Value: White=0.78/Black=0.40} 0-1

[Event "13th KIIT Festival-A 2022"]
[Site "Bhubaneswar"]
[Date "2022.05.27"]
[Round "8.19"]
[White "Liyanage, Pesandu Rashmitha"]
[Black "Harini, S.."]
[Result "1-0"]
[ECO "D00"]
[WhiteElo "1730"]
[BlackElo "2021"]
[Annotator "TA"]
[PlyCount "139"]
[EventDate "2022.05.15"]
[EventType "swiss"]
[EventCountry "IND"]
[SourceTitle "playchess.com"]
[Source "ChessBase"]
[SourceQuality "1"]
[TimeControl "5400+30"]

{[%evp 9,139,0,0,0,0,-13,-18,-8,-7,-9,-10,-9,0,0,23,-7,24,19,25,22,31,21,28,26,24,14,22,5,100,82,82,82,96,91,97,81,143,131,159,158,189,195,229,222,220,224,282,265,268,224,321,321,320,308,328,324,318,316,314,317,358,347,357,360,350,307,400,301,350,335,352,342,356,357,394,354,347,287,307,263,274,220,255,251,232,225,305,222,220,219,223,220,217,217,208,210,254,245,252,-29995,257,256,261,254,254,244,269,266,317,307,314,314,398,402,586,409,430,432,377,389,393,393,377,384,372,345,319,265,531,524,536,536]} 1. d4 {[%emt 0:01:15]} Nf6 {[%emt 0:00:11]} 2. Bf4 {[%emt 0:00:05]} d5 {[%emt 0:00:21]} 3. e3 {[%emt 0:00:06]} c5 {[%emt 0:00:30]} 4. c3 {[%emt 0:00:06]} Nc6 {[%emt 0:00:31]} 5. Nd2 {[%emt 0:00:06]} Bf5 {[%emt 0:01:33]} 6. Qb3 {[%emt 0:00:06] D00: 1 d4 d5: Unusual lines.} Qd7 {[%emt 0:00:31]} 7. dxc5 {[%emt 0:00:28]} e5 {[%emt 0:03:56]} 8. Bg3 {[%emt 0:00:12] The position is equal.} Bxc5 {[%emt 0:01:13]} 9. Ngf3 {[%emt 0:00:09]} Qe7 {[%emt 0:06:00] Black wants to play ...d4.} 10. Bb5 {[%emt 0:00:08]} Bd6 {[%emt 0:00:49]} 11. Bh4 {[%emt 0:00:06]} Be6 {[%emt 0:11:05]} (11... a6 $5 {[%cal Ra6b5]} 12. Bxf6 gxf6 $15) 12. Ng5 {[%emt 0:00:33] [#]} O-O $146 {[%emt 0:02:47]} ({Predecessor:} 12... Bd7) 13. Nxe6 {[%emt 0:00:10]} fxe6 {[%emt 0:01:50]} 14. e4 {[%emt 0:09:01]} Kh8 {[%emt 0:14:57]} 15. O-O {[%emt 0:17:54]} a6 {[%emt 0:05:30]} 16. Bd3 {[%emt 0:01:25]} Rad8 {[%emt 0:10:32]} 17. Rad1 {[%emt 0:05:50]} Bb8 {[%emt 0:02:40]} 18. Rfe1 {[%emt 0:09:29]} b5 {[%emt 0:18:53]} (18... h6 $11 {remains equal.}) 19. a4 {[%emt 0:07:57]} Na5 {[%emt 0:02:04]} 20. Qc2 {[%emt 0:00:31]} Qe8 {[%emt 0:04:08]} 21. axb5 {[%emt 0:06:57]} axb5 {[%emt 0:00:07]} 22. Nf3 {[%emt 0:00:30]} Rc8 {[%emt 0:06:40]} (22... Nb7 $142) 23. Bg3 $16 {[%emt 0:09:23] Hoping for exd5.} dxe4 {[%emt 0:03:30]} 24. Bxe4 {[%emt 0:00:07]} Nc4 {[%emt 0:00:04]} 25. Bd3 {[%emt 0:01:22]} Qh5 {[%emt 0:02:04]} 26. Bxc4 {[%emt 0:01:30]} bxc4 {[%emt 0:00:28]} 27. Bxe5 {[%emt 0:00:49]} Ng4 {[%emt 0:00:17][%cal Rb8e5]} 28. Bxb8 {[%emt 0:01:53]} Rxb8 {[%emt 0:00:04]} 29. Qe2 {[%emt 0:00:57]} ({Stronger than} 29. Rxe6 Rxf3 $1 30. gxf3 Nxh2 $11) 29... h6 {[%emt 0:01:13]} (29... Rxf3 {might work better.} 30. Qxf3 Qxh2+ 31. Kf1 Qh1+ 32. Ke2 Qh4) 30. h3 $18 {[%emt 0:01:25]} Nf6 {[%emt 0:00:10]} 31. Ne5 {[%emt 0:00:36]} ({Much less strong is} 31. Qxe6 Rxb2 32. Qxc4 Ra8 $18) 31... Qxe2 {[%emt 0:00:48]} 32. Rxe2 {[%emt 0:00:01]} Rfc8 {[%emt 0:00:12]} 33. Rd4 {[%emt 0:00:36]} Nd5 {[%emt 0:00:46]} 34. Nxc4 {[%emt 0:00:29]} Rc6 {[%emt 0:00:11]} 35. g3 {[%emt 0:05:09]} Kg8 {[%emt 0:00:12]} 36. Ne5 {[%emt 0:00:53]} Rcb6 {[%emt 0:00:16]} 37. Rdd2 {[%emt 0:00:15] Black must now prevent Nd7.} R8b7 {[%emt 0:00:31] Inhibits Nd7.} 38. Nd3 {[%emt 0:01:24]} Rc6 {[%emt 0:00:14]} 39. Kg2 {[%emt 0:00:20]} Kf8 {[%emt 0:00:06]} 40. h4 {[%emt 0:02:06]} Ke7 {[%emt 0:00:19]} 41. Ne5 {[%emt 0:00:53][%cal Bd3e5,Be5c4,Bc4e3][%mdl 32]} Rcb6 {[%emt 0:00:06]} 42. Nc4 {[%emt 0:00:10] Threatens to win with Rxd5.} Rb5 {[%emt 0:01:02]} 43. Kf3 {[%emt 0:00:48]} Rc5 {[%emt 0:00:26]} 44. Ne3 {[%emt 0:00:36]} Nf6 {[%emt 0:00:44]} 45. Ng2 {[%emt 0:03:09]} Rf5+ {[%emt 0:01:02]} 46. Ke3 $1 {[%emt 0:00:06]} Ng4+ {[%emt 0:01:06]} 47. Kd3 {[%emt 0:00:06]} Ne5+ {[%emt 0:00:15]} 48. Ke4 {[%emt 0:04:08]} Nc4 {[%emt 0:00:21] [#]} 49. Rc2 {[%emt 0:00:06]} Nd6+ {[%emt 0:00:43]} 50. Kd3 {[%emt 0:01:20]} Rd5+ {[%emt 0:00:11]} 51. Ke3 {[%emt 0:00:06]} Nc4+ {[%emt 0:00:42]} 52. Kf3 {[%emt 0:01:20]} Ne5+ {[%emt 0:00:56]} 53. Kf4 {[%emt 0:00:31]} Kf6 {[%emt 0:00:38]} 54. Ne3 $4 {[%emt 0:00:25][%mdl 8192] [#]} (54. Ke4 $18) 54... g5+ $4 {[%emt 0:00:29][%mdl 8192]} (54... Rb4+ $1 {[%mdl 512] mates} 55. Nc4 g5+ 56. hxg5+ hxg5+ 57. Ke4 Rxc4+ 58. Ke3 Rd3#) 55. hxg5+ {[%emt 0:00:28]} hxg5+ {[%emt 0:00:09]} 56. Ke4 {[%emt 0:00:01]} Rdb5 {[%emt 0:00:51]} 57. f4 {[%emt 0:00:23]} gxf4 {[%emt 0:00:28]} 58. gxf4 {[%emt 0:00:02]} Nd7 {[%emt 0:00:22]} 59. Ng4+ {[%emt 0:00:08]} Ke7 {[%emt 0:00:12]} 60. Rh2 {[%emt 0:00:36]} Nc5+ {[%emt 0:00:21]} 61. Ke3 {[%emt 0:00:38]} Na4 {[%emt 0:01:06]} (61... Nd7 $142 62. Rh7+ Kd8) 62. Rh7+ {[%emt 0:00:17]} Kd6 {[%emt 0:00:03]} 63. Rxb7 {[%emt 0:00:35]} Rxb7 {[%emt 0:00:03][%mdl 4096] Endgame KRN-KRN} 64. b4 {[%emt 0:00:15]} Kc6 {[%emt 0:00:46]} 65. Nf2 {[%emt 0:03:21]} Kb5 {[%emt 0:00:17]} 66. Ne4 {[%emt 0:00:07] And now Nd6+ would win.} Rh7 {[%emt 0:01:00]} 67. Kd4 {[%emt 0:01:21]} Rh5 {[%emt 0:00:20]} 68. Ng5 {[%emt 0:00:53]} Rh6 $2 {[%emt 0:00:18]} (68... Rh1 69. Ne4 Rd1+ 70. Rd2 Rg1) 69. Re2 {[%emt 0:00:21] Re5+ is the strong threat.} Rh1 {[%emt 0:01:10]} 70. Re5+ {[%emt 0:00:15] White used his chance.  Weighted Error Value: White=0.25 (precise) /Black=0.37} 1-0

[Event "13th KIIT Festival-A 2022"]
[Site "Bhubaneswar"]
[Date "2022.05.28"]
[Round "9.1"]
[White "Nikitenko, Mihail"]
[Black "Amonatov, Farrukh"]
[Result "0-1"]
[ECO "B96"]
[WhiteElo "2479"]
[BlackElo "2622"]
[Annotator "TA"]
[PlyCount "126"]
[EventDate "2022.05.15"]
[EventType "swiss"]
[EventCountry "IND"]
[SourceTitle "playchess.com"]
[Source "ChessBase"]
[SourceQuality "1"]
[TimeControl "5400+30"]

{[%evp 17,126,49,66,55,65,47,62,47,41,28,78,28,90,78,89,95,104,102,102,112,104,61,70,83,93,18,60,44,38,45,51,27,23,31,48,52,58,31,82,72,79,79,72,72,86,96,125,119,117,126,152,136,165,147,158,144,279,134,145,147,155,164,181,56,44,0,0,5,70,49,59,66,70,0,0,0,0,0,0,0,0,0,0,0,0,-185,-173,-104,-91,-429,-418,-405,-402,-580,-537,-2520,-1919,-2591,-2425,-3501,-3220,-6057,-5877,-29939,-10817,-29955,-29956,-12808,-6211,-5122,-1432]} 1. e4 {[%emt 0:00:05]} c5 {[%emt 0:00:09]} 2. Nf3 {[%emt 0:00:07]} d6 {[%emt 0:00:05]} 3. d4 {[%emt 0:00:05]} cxd4 {[%emt 0:00:06]} 4. Nxd4 {[%emt 0:00:04]} Nf6 {[%emt 0:00:07]} 5. Nc3 {[%emt 0:00:06]} a6 {[%emt 0:00:05]} 6. Bg5 {[%emt 0:00:06]} e6 {[%emt 0:02:06]} 7. f4 {[%emt 0:02:07][%cal Bf2f4,Bf4f5][%mdl 32]} Qc7 {[%emt 0:00:07]} 8. Qf3 {[%emt 0:00:07] 8.Bxf6 is more advanced technology.} b5 {[%emt 0:00:06]} 9. Bxf6 {[%emt 0:00:09]} gxf6 {[%emt 0:00:06]} 10. a3 {[%emt 0:00:03] B96: Sicilian Najdorf: 6 Bg5 e6 7 f4, lines other than 7...Qb6 and 7...Be7.} Nc6 {[%emt 0:00:31]} 11. Nxc6 {[%emt 0:06:06]} Qxc6 {[%emt 0:00:11]} 12. f5 {[%emt 0:00:19] White is slightly better.} Qc5 {[%emt 0:03:00]} 13. O-O-O {[%emt 0:07:29][%cal Oe4e5] [#]} Qe5 $5 $146 {[%emt 0:02:24][%mdl 8] An interesting novelty.} (13... b4 $11 14. axb4 Qxb4) ({Predecessor:} 13... Bb7 14. Be2 h5 15. Kb1 Ke7 16. Rhf1 Qe5 17. fxe6 fxe6 18. Qf2 Rd8 19. Qb6 Rd7 20. Nxb5 Bxe4 {0-1 (33) Robson,R (2527)-Vachier Lagrave,M (2718) Puerto Madryn 2009}) 14. Bd3 {[%emt 0:08:38]} (14. Qh5 $16) 14... Bb7 {[%emt 0:08:13]} (14... Rb8 $11 {remains equal.}) 15. Rhf1 {[%emt 0:01:25]} h5 {[%emt 0:01:39]} 16. Kb1 {[%emt 0:00:35]} ({Much weaker is} 16. fxe6 fxe6 17. Qxf6 Qxf6 18. Rxf6 Bh6+ 19. Kb1 Ke7 $11) 16... Be7 {[%emt 0:06:13]} 17. Ne2 {[%emt 0:01:14]} O-O-O {[%emt 0:01:37]} 18. Nf4 {[%emt 0:01:41]} Rdg8 {[%emt 0:01:33]} 19. Qh3 {[%emt 0:03:23]} Kb8 $1 {[%emt 0:05:51]} 20. Rde1 {[%emt 0:00:09]} h4 {[%emt 0:03:37]} 21. Nd5 {[%emt 0:04:17]} Bd8 {[%emt 0:01:54]} 22. Ne3 {[%emt 0:00:08]} Rf8 {[%emt 0:14:52]} (22... Bxe4 $2 23. Ng4 Rxg4 24. Qxg4 exf5 25. Qg7 $18) 23. Ng4 {[%emt 0:07:02]} Qc5 {[%emt 0:01:16]} 24. Rf4 {[%emt 0:02:48]} e5 {[%emt 0:03:43]} 25. Rff1 {[%emt 0:02:40]} Rfg8 {[%emt 0:00:37]} 26. Qf3 {[%emt 0:01:57]} Be7 {[%emt 0:03:47]} 27. Ne3 {[%emt 0:02:24]} Rc8 {[%emt 0:00:15]} (27... Bf8 $14) 28. c3 {[%emt 0:03:06]} Bf8 {[%emt 0:03:34]} 29. Bc2 {[%emt 0:05:24]} Bh6 {[%emt 0:00:16]} 30. Bb3 {[%emt 0:01:03]} Bxe3 {[%emt 0:02:24]} 31. Rxe3 {[%emt 0:00:03]} d5 {[%emt 0:05:59]} 32. exd5 {[%emt 0:01:43]} Rhg8 {[%emt 0:00:14][%cal Og8g2]} 33. Rd3 {[%emt 0:01:22]} Rg5 {[%emt 0:01:50]} 34. Qe4 {[%emt 0:02:20]} Qd6 {[%emt 0:04:13]} 35. Rf2 {[%emt 0:03:18]} Rcg8 {[%emt 0:01:01]} 36. h3 {[%emt 0:00:08] Prevents Rg4.} Qc5 {[%emt 0:02:35]} (36... Rh5 $16 37. Bd1 Rhg5) 37. Rdd2 {[%emt 0:00:32]} (37. Qxh4 $18 {and the rest is easy. Threatens to win with g4.} a5 38. g4) 37... Rh8 $16 {[%emt 0:03:38]} 38. Ka2 {[%emt 0:05:33]} Rg3 {[%emt 0:02:35]} 39. Rf3 {[%emt 0:00:44]} Rg5 {[%emt 0:00:02] [#]} 40. Qe1 {[%emt 0:06:16]} ({White should play} 40. c4 $1 $18 {[%cal Rc4b5]}) 40... a5 $14 {[%emt 0:00:50]} 41. Qf2 {[%emt 0:03:01]} Qxf2 {[%emt 0:04:37]} 42. Rfxf2 {[%emt 0:00:03]} (42. Rdxf2 $2 {is the wrong capture.} a4 43. Bd1 Bxd5+ 44. Kb1 Bxf3 45. Bxf3 Rxf5 $19) 42... Rhg8 {[%emt 0:02:13]} (42... a4 $11 43. Bc2 Kc7) 43. a4 {[%emt 0:06:44]} bxa4 {[%emt 0:00:15]} 44. Bxa4 {[%emt 0:00:02]} Rxg2 {[%emt 0:00:18]} 45. c4 {[%emt 0:00:03]} ({Better is} 45. Rxg2 $14 Rxg2 46. Rd1) 45... Rxf2 $1 $11 {[%emt 0:00:39]} 46. Rxf2 {[%emt 0:00:04][%cal Ob2b4][%mdl 4096] Endgame KRB-KRB} Kc7 {[%emt 0:00:21]} 47. b4 {[%emt 0:01:58]} axb4 {[%emt 0:01:04] Strongly threatening ...Rg3.} 48. Rb2 {[%emt 0:01:44]} e4 {[%emt 0:02:51]} 49. Kb3 {[%emt 0:01:23]} Kd6 {[%emt 0:03:54] Hoping for ...Kc5.} 50. Kxb4 {[%emt 0:00:08] Kc3 is the strong threat.} Bc8 {[%emt 0:00:42]} 51. Kc3 $2 {[%emt 0:05:07]} (51. Rd2 $1 $11 {and White stays safe.}) 51... Ke5 $19 {[%emt 0:00:42] White must now prevent ...Rg3+.} ({Don't take} 51... Bxf5 52. Kd4 Ra8 53. c5+ Ke7 54. Bc6 $18) 52. Rb8 {[%emt 0:00:03]} Rg3+ {[%emt 0:01:58]} 53. Kb4 $2 {[%emt 0:00:07][%mdl 8192]} (53. Kb2 $17 Bxf5 54. Re8+ Kd6 55. Rd8+ Kc7 56. Rh8 Rg2+ 57. Kc3) 53... Bxf5 {[%emt 0:00:02]} 54. Re8+ {[%emt 0:00:03] [#]} Kf4 $1 {[%emt 0:00:23]} 55. d6 {[%emt 0:01:15]} (55. c5 {was called for.} Rxh3 56. Rh8) 55... Rd3 {[%emt 0:00:07]} 56. c5 {[%emt 0:08:48]} Rd4+ {[%emt 0:00:10]} 57. Kb5 {[%emt 0:00:03] [#]} Rxa4 $1 {[%emt 0:00:42][%mdl 512] KRB-KR} 58. c6 {[%emt 0:00:03] Prevents Bd7.} Rd4 {[%emt 0:00:24]} 59. Kc5 {[%emt 0:00:03]} Rd1 {[%emt 0:01:38]} 60. Re7 {[%emt 0:01:15]} e3 {[%emt 0:01:23][%cal Be4e3,Be3e2][%mdl 32] ( -> ...Be6)} 61. d7 {[%emt 0:00:59] [#]} Bxd7 $1 {[%emt 0:02:12]} 62. cxd7 {[%emt 0:00:02] [#]} Rxd7 $3 {[%emt 0:00:29][%mdl 512]} 63. Rxd7 {[%emt 0:00:02]} e2 {[%emt 0:00:07] What a bad dream for White.  Weighted Error Value: White=0.82/Black=0.10 (very precise)} 0-1

[Event "13th KIIT Festival-A 2022"]
[Site "Bhubaneswar"]
[Date "2022.05.28"]
[Round "9.2"]
[White "Stupak, Kirill"]
[Black "Mirzoev, Azer"]
[Result "1/2-1/2"]
[ECO "D15"]
[WhiteElo "2440"]
[BlackElo "2476"]
[Annotator "TA"]
[PlyCount "61"]
[EventDate "2022.05.15"]
[EventType "swiss"]
[EventCountry "IND"]
[SourceTitle "playchess.com"]
[Source "ChessBase"]
[SourceQuality "1"]
[TimeControl "5400+30"]

{[%evp 13,61,19,8,16,25,5,14,5,2,0,11,13,4,-4,-3,-2,-2,-2,-6,-5,-5,-16,-12,-17,-8,-6,-7,-10,0,0,0,0,0,0,0,0,6,10,6,0,0,-6,0,0,0,-12,0,0,0,-8]} 1. d4 {[%emt 0:00:01]} d5 {[%emt 0:00:06]} 2. c4 {[%emt 0:00:07]} c6 {[%emt 0:00:04]} 3. Nf3 {[%emt 0:01:04][%cal Bg1f3,Bf3d2,Bd2c4][%mdl 32]} Nf6 {[%emt 0:00:14]} 4. Nc3 {[%emt 0:00:58]} a6 {[%emt 0:00:15]} 5. a4 {[%emt 0:01:46]} e6 {[%emt 0:00:20]} 6. Bg5 {[%emt 0:01:17]} Nbd7 {[%emt 0:00:45]} 7. e3 {[%emt 0:01:48]} Qa5 {[%emt 0:02:08]} 8. Nd2 {[%emt 0:02:18] D15: Slav Defence: 4 Nc3 a6 and gambit lines after 4 Nc3 dxc4.} Bb4 {[%emt 0:00:31]} 9. Qc2 {[%emt 0:01:53] Prevents Ne4.} dxc4 {[%emt 0:00:26] The position is equal.} 10. Bxf6 {[%emt 0:01:39]} Nxf6 {[%emt 0:00:06]} 11. Nxc4 {[%emt 0:00:12] Pair of Knights!} Qc7 {[%emt 0:00:06]} 12. Be2 {[%emt 0:08:44]} c5 {[%emt 0:00:10] [#]} 13. dxc5 $146 {[%emt 0:02:25]} ({Predecessor:} 13. O-O cxd4 14. exd4 O-O 15. Qb3 Bd6 16. Nxd6 Qxd6 17. Rfd1 Bd7 18. Qxb7 Rfb8 19. Qf3 {½-½ (33) Beliavsky,A (2628)-Eljanov,P (2702) Legnica 2013}) 13... Bxc5 {[%emt 0:00:53]} 14. O-O {[%emt 0:00:19]} O-O {[%emt 0:00:24]} 15. Ne4 {[%emt 0:01:03]} Nxe4 {[%emt 0:00:15]} 16. Qxe4 {[%emt 0:00:02]} Bd7 {[%emt 0:01:24]} 17. Bf3 {[%emt 0:00:32]} Bc6 {[%emt 0:02:10]} 18. Qe5 {[%emt 0:00:07]} Qxe5 {[%emt 0:00:53]} 19. Nxe5 {[%emt 0:00:02]} Bxf3 {[%emt 0:00:27]} 20. Nxf3 {[%emt 0:00:17]} Rfd8 {[%emt 0:00:29]} 21. Rfd1 {[%emt 0:00:17]} Kf8 {[%emt 0:00:49]} 22. Kf1 {[%emt 0:00:04]} Ke7 {[%emt 0:01:00]} 23. Ke2 {[%emt 0:00:04]} Rxd1 {[%emt 0:03:04]} 24. Rxd1 {[%emt 0:00:02]} Rd8 {[%emt 0:00:37]} 25. Rxd8 {[%emt 0:00:10]} Kxd8 $11 {[%emt 0:00:07][%mdl 4096] Endgame KB-KN} 26. Ne5 {[%emt 0:00:31]} Ke7 {[%emt 0:00:35]} 27. Nd3 {[%emt 0:00:05]} Bd6 {[%emt 0:00:21]} 28. h3 {[%emt 0:00:14]} f5 {[%emt 0:00:32]} 29. f4 {[%emt 0:00:28]} g6 {[%emt 0:00:29]} 30. b3 {[%emt 0:00:37]} Kd7 {[%emt 0:00:05]} 31. Nb2 {[%emt 0:01:12] A balanced but interesting game.  Weighted Error Value: White=0.03 (flawless) /Black=0.02 (flawless)} 1/2-1/2

[Event "13th KIIT Festival-A 2022"]
[Site "Bhubaneswar"]
[Date "2022.05.28"]
[Round "9.3"]
[White "Aleksandrov, Aleksej"]
[Black "Fedorov, Alexei"]
[Result "1/2-1/2"]
[WhiteElo "2492"]
[BlackElo "2529"]
[Annotator "TA"]
[PlyCount "19"]
[EventDate "2022.05.15"]
[EventType "swiss"]
[EventCountry "IND"]
[SourceTitle "playchess.com"]
[Source "ChessBase"]
[SourceQuality "1"]
[TimeControl "5400+30"]

{[%evp 18,19,19,0]} 1. e4 {[%emt 0:00:01]} c5 {[%emt 0:00:04]} 2. Nf3 {[%emt 0:00:01]} d6 {[%emt 0:00:06]} 3. d4 {[%emt 0:00:01]} cxd4 {[%emt 0:00:06]} 4. Nxd4 {[%emt 0:00:02]} Nf6 {[%emt 0:00:05]} 5. Nc3 {[%emt 0:00:01]} a6 {[%emt 0:00:06]} 6. Be3 {[%emt 0:00:02] [#]} Ng4 $146 {[%emt 0:00:05]} ({Predecessor:} 6... e5 7. Nb3 Be6 8. f3 h5 9. Nd5 Bxd5 10. exd5 Nbd7 11. Qd2 g6 12. O-O-O Nb6 13. Kb1 Nbxd5 14. Bg5 Be7 15. a3 Qc7 16. g3 Rd8 {1-0 (67) Dominguez Perez,L (2753)-Deac,B (2671) Bucharest 2022}) 7. Bc1 {[%emt 0:00:01]} Nf6 {[%emt 0:00:06]} 8. Be3 {[%emt 0:00:01]} Ng4 {[%emt 0:00:07]} 9. Bc1 {[%emt 0:00:03]} Nf6 {[%emt 0:00:05]} 10. Be3 {[%emt 1:35:17] 10.Be3 has lost popularity.} 1/2-1/2

[Event "13th KIIT Festival-A 2022"]
[Site "Bhubaneswar"]
[Date "2022.05.28"]
[Round "9.4"]
[White "Savchenko, Boris"]
[Black "Sidhant, Mohapatra"]
[Result "1-0"]
[ECO "B99"]
[WhiteElo "2524"]
[BlackElo "2327"]
[Annotator "TA"]
[PlyCount "59"]
[EventDate "2022.05.15"]
[EventType "swiss"]
[EventCountry "IND"]
[SourceTitle "playchess.com"]
[Source "ChessBase"]
[SourceQuality "1"]
[TimeControl "5400+30"]

{[%evp 24,59,41,27,20,10,3,6,50,53,47,65,46,14,11,42,48,24,30,32,35,31,153,152,175,166,170,112,107,64,40,46,32,47,115,110,29988,29989]} 1. e4 {[%emt 0:00:03]} c5 {[%emt 0:00:26]} 2. Nf3 {[%emt 0:00:06]} d6 {[%emt 0:00:21]} 3. d4 {[%emt 0:00:05]} cxd4 {[%emt 0:00:08]} 4. Nxd4 {[%emt 0:00:05]} Nf6 {[%emt 0:00:45]} 5. Nc3 {[%emt 0:00:06]} a6 {[%emt 0:00:17]} 6. Bg5 {[%emt 0:01:02]} e6 {[%emt 0:00:30]} 7. f4 {[%emt 0:00:05]} Be7 {[%emt 0:00:16]} 8. Qf3 {[%emt 0:00:06]} Qc7 {[%emt 0:00:07]} 9. O-O-O {[%emt 0:00:11]} Nbd7 {[%emt 0:00:08]} 10. g4 {[%emt 0:00:05][%cal Bg2g4,Bg4g5][%mdl 32]} b5 {[%emt 0:03:14][%cal Bb7b5,Bb5b4][%mdl 32]} 11. Bxf6 {[%emt 0:00:09]} Nxf6 {[%emt 0:00:03]} 12. g5 {[%emt 0:00:07]} Nd7 {[%emt 0:00:11]} 13. f5 {[%emt 0:00:06][%cal Bf4f5,Bf5f6][%mdl 32]} O-O {[%emt 0:00:20] ...b4 is the strong threat. B99: Sicilian Najdorf: 6 Bg5 e6 7 f4 Be7 8 Qf3 Qc7 9 0-0-0 Nbd7.} 14. h4 {[%emt 0:05:41]} (14. f6 gxf6 15. gxf6 Nxf6 $17) 14... b4 $1 {[%emt 0:01:56]} 15. Nce2 {[%emt 0:00:06] Hoping for Nf4.} e5 {[%emt 0:03:09] Against Nf4. The position is equal.} ({Resist} 15... Ne5 16. Qg3 $14) 16. f6 $1 {[%emt 0:00:07]} exd4 {[%emt 0:00:12]} 17. fxe7 {[%emt 0:00:05]} Re8 {[%emt 0:00:09] [#]} 18. Rxd4 $146 {[%emt 0:21:39]} ({Predecessor:} 18. Nxd4 Ne5 19. Qg3 Bg4 20. Rd2 Qxe7 21. Be2 Bxe2 22. Rxe2 Nc4 23. Rd1 Qe5 24. Qxe5 dxe5 {1-0 (43) Pichot,A (2630)-Aliavdin,N (2315) Chess.com INT 2020}) 18... Ne5 {[%emt 0:03:59]} 19. Qg3 {[%emt 0:02:14]} Qb6 {[%emt 0:18:38]} 20. Bh3 {[%emt 1:08:22] Against Bg4} Rxe7 {[%emt 1:05:41]} 21. Rhd1 {[%emt 0:00:00]} Bxh3 {[%emt 0:00:00]} 22. Qxh3 {[%emt 0:00:00]} Rae8 {[%emt 0:00:00]} (22... a5 $14) 23. Nf4 $1 $16 {[%emt 0:00:00]} ({Reject} 23. Rxd6 Qf2 24. Ng3 g6 $11) 23... Qc5 {[%emt 0:00:00] [#]} 24. Nd5 $1 {[%emt 0:00:00]} Rb7 {[%emt 0:00:00]} 25. h5 {[%emt 0:00:00]} (25. b3 $18) 25... Nc6 {[%emt 0:00:00]} 26. Nf6+ {[%emt 0:01:17]} gxf6 {[%emt 0:00:00]} 27. Rd5 $40 {[%emt 0:00:04][%cal Bd4d5,Bd5f5,Bf5e5][%mdl 160] White mounts an attack.} Qf2 {[%emt 0:00:00] White must now prevent ...Qf4+.} 28. Rf5 {[%emt 0:00:07] Against Qf4+} Qe2 {[%emt 0:00:00]} (28... Qa7 $1 $14) 29. gxf6 {[%emt 0:00:18] Intending Qg3+ and mate. The board is on fire.} Ne5 $2 {[%emt 0:00:00][%mdl 8192] [#]} (29... Ne7 $16 30. fxe7 Rc7 31. Qg3+ Kh8) 30. Rxe5 $1 {[%emt 0:00:39][%mdl 512] Weighted Error Value: White=0.09 (flawless) /Black=0.42} 1-0